bitfinex/quotes_ETHUSD_20241109
["timestamp","ask_amount","ask_price","bid_price","bid_amount"]
[1731161169608,1.3128,3043.0,3042.2,0.4485]
[1731161169794,1.806849,3043.0,3042.3,0.14864217]
[1731161169996,1.806849,3043.0,3042.2,0.4485]
[1731161170196,1.806849,3043.0,3042.3,0.14864217]
[1731161170507,1.806849,3043.0,3042.2,0.4485]
[1731161170871,1.806849,3043.0,3042.3,0.1486429]
[1731161171073,0.55,3042.8,3042.3,0.1486429]
[1731161171324,0.55,3042.8,3042.2,0.4485]
[1731161171797,0.55,3042.8,3042.3,0.1486429]
[1731161171980,0.55,3042.8,3042.2,0.4485]
[1731161172188,0.55,3042.8,3042.3,0.1486429]
[1731161172409,0.55,3042.8,3042.2,0.4485]
[1731161172595,0.55,3042.8,3042.3,0.14864253]
[1731161172801,0.55,3042.8,3042.2,0.4485]
[1731161173004,0.55,3042.8,3042.3,0.14864253]
[1731161173302,0.55,3042.8,3042.2,0.4485]
[1731161173674,0.55,3042.8,3042.3,0.14863925]
[1731161174112,0.55,3042.8,3042.2,0.4485]
[1731161174409,0.55,3042.8,3042.3,0.14867751]
[1731161174708,0.55,3042.8,3042.2,0.4485]
[1731161175108,0.75503029,3042.8,3042.3,0.14867751]
[1731161175620,0.75503029,3042.8,3042.2,0.4485]
[1731161178187,0.75503029,3042.8,3041.5,0.1391057]
[1731161178188,0.75503029,3042.8,3041.6,0.4485]
[1731161178408,0.75503029,3042.8,3041.7,0.14914024]
[1731161178722,0.55,3042.6,3041.7,0.14914024]
[1731161183624,0.7628,3042.5,3041.7,0.14914024]
[1731161183992,0.55,3042.4,3041.7,0.14914024]
[1731161189390,0.55,3042.2,3041.7,0.14914024]
[1731161190030,0.55,3042.4,3041.7,0.14914024]
[1731161190227,0.55,3042.2,3041.7,0.14914024]
[1731161190935,0.55,3042.4,3041.7,0.14914024]
[1731161191230,0.55,3042.2,3041.7,0.14914024]
[1731161191404,0.55,3042.4,3041.7,0.14914024]
[1731161191612,0.55,3042.2,3041.7,0.14914024]
[1731161191825,0.55,3042.4,3041.7,0.14914024]
[1731161192140,0.55,3042.2,3041.7,0.14914024]
[1731161192434,0.55,3042.4,3041.7,0.14914024]
[1731161192611,0.55,3042.2,3041.7,0.14914024]
[1731161192807,0.55,3042.4,3041.7,0.14914024]
[1731161193137,0.55,3042.2,3041.7,0.14914024]
[1731161193332,0.307173,3042.1,3041.7,0.14914024]
[1731161193519,0.307173,3042.0,3041.7,0.14914024]
[1731161193726,0.98128,3042.4,3041.7,0.14914024]
[1731161193928,0.55,3042.2,3041.7,0.14914024]
[1731161194127,0.30748981,3042.1,3041.7,0.14914024]
[1731161194434,0.30748981,3042.0,3041.7,0.14914024]
[1731161194626,0.55,3042.4,3041.7,0.14914024]
[1731161194825,0.55,3042.2,3041.7,0.14914024]
[1731161195009,0.55,3042.0,3041.7,0.14914024]
[1731161195512,0.55,3041.8,3041.7,0.14914024]
[1731161195716,0.85745269,3041.8,3041.7,0.14914024]
[1731161196046,0.85745269,3041.8,3041.5,0.1391057]
[1731161196200,0.55,3041.6,3041.5,0.1391057]
[1731161196406,0.55,3041.8,3041.5,0.28845531]
[1731161196611,0.55,3041.6,3041.5,0.1391057]
[1731161196938,0.55,3041.8,3041.5,0.1391057]
[1731161197139,0.30740579,3041.7,3041.5,0.1391057]
[1731161197348,0.55,3042.1,3041.5,0.1391057]
[1731161197640,0.55,3041.9,3041.5,0.1391057]
[1731161198049,0.55,3042.1,3041.5,0.1391057]
[1731161198231,0.3073104,3042.0,3041.5,0.1391057]
[1731161198547,0.55,3042.1,3041.5,0.1391057]
[1731161198548,0.8573104,3041.9,3041.5,0.1391057]
[1731161198717,0.55,3042.1,3041.5,0.1391057]
[1731161198917,0.30730543,3042.0,3041.5,0.1391057]
[1731161199112,0.55,3041.8,3041.5,0.1391057]
[1731161199329,0.55,3042.1,3041.5,0.1391057]
[1731161199529,0.55,3041.9,3041.5,0.1391057]
[1731161199851,0.55,3042.1,3041.5,0.1391057]
[1731161200008,0.55,3041.9,3041.5,0.1391057]
[1731161200552,0.55,3042.1,3041.5,0.1391057]
[1731161200718,0.30727729,3042.0,3041.5,0.1391057]
[1731161200910,0.30727729,3041.9,3041.5,0.1391057]
[1731161201112,0.55,3042.1,3041.5,0.1391057]
[1731161201312,0.55,3041.9,3041.5,0.1391057]
[1731161201715,0.55,3042.1,3041.5,0.1391057]
[1731161201918,0.55,3041.9,3041.5,0.1391057]
[1731161202247,0.55,3041.9,3041.6,0.4485]
[1731161202449,0.55,3042.1,3041.6,0.4485]
[1731161202648,0.55,3041.9,3041.6,0.4485]
[1731161202848,0.55,3042.1,3041.6,0.4485]
[1731161204368,0.30729847,3042.0,3041.6,0.4485]
[1731161204573,0.55,3042.1,3041.6,0.4485]
[1731161204729,0.30729912,3042.0,3041.6,0.4485]
[1731161204930,0.55,3042.1,3041.6,0.4485]
[1731161205170,0.30732269,3042.0,3041.6,0.4485]
[1731161205478,0.55,3042.4,3041.6,0.4485]
[1731161205679,0.55,3042.2,3041.6,0.4485]
[1731161205981,0.55,3042.2,3041.7,0.14910577]
[1731161206157,0.8299,3042.3,3041.7,0.14910577]
[1731161206472,0.85734706,3042.2,3041.5,0.1391057]
[1731161206682,0.55,3042.0,3041.5,0.1391057]
[1731161207274,0.55,3042.2,3041.5,0.1391057]
[1731161207478,0.55,3042.0,3041.5,0.1391057]
[1731161207863,0.55,3042.2,3041.5,0.1391057]
[1731161208181,0.55,3042.0,3041.5,0.1391057]
[1731161208327,0.8194,3042.0,3041.5,0.1391057]
[1731161208533,0.55,3041.8,3041.5,0.1391057]
[1731161209350,0.55,3041.6,3041.5,0.1391057]
[1731161209599,0.85743645,3041.6,3041.5,0.1391057]
[1731161210133,0.55,3041.7,3041.5,0.1391057]
[1731161210466,2.05027456,3041.6,3041.5,0.1391057]
[1731161210681,2.6574332,3041.6,3041.5,0.1391057]
[1731161210905,2.96485159,3041.6,3041.5,0.1391057]
[1731161211057,2.14545159,3041.6,3041.5,0.1391057]
[1731161211398,2.96485159,3041.6,3041.5,0.1391057]
[1731161212650,2.28397703,3041.6,3041.5,0.1391057]
[1731161212847,1.46457703,3041.6,3041.5,0.1391057]
[1731161214249,0.85741839,3041.6,3041.5,0.1391057]
[1731161214766,0.30741839,3041.6,3041.5,0.1391057]
[1731161214965,0.68087456,3042.3,3041.6,0.4485]
[1731161215199,0.30723858,3042.2,3041.6,0.4485]
[1731161215396,1.02131185,3042.5,3041.7,0.59773421]
[1731161215397,0.68087456,3042.5,3041.7,0.59773421]
[1731161215598,0.30725092,3042.4,3041.7,0.4485]
[1731161215890,0.30725092,3042.3,3041.7,0.4485]
[1731161216093,0.68087456,3042.5,3041.7,0.4485]
[1731161216395,0.30725855,3042.4,3041.7,0.4485]
[1731161216697,0.68087456,3042.6,3041.7,0.4485]
[1731161216896,0.30724621,3042.5,3041.7,0.4485]
[1731161217064,0.30724621,3042.5,3041.8,0.14916474]
[1731161217065,0.30724621,3042.4,3041.8,0.14916474]
[1731161217274,0.30724621,3042.3,3041.8,0.14916474]
[1731161217571,0.55,3042.4,3041.8,0.14916474]
[1731161217909,0.30726079,3042.3,3041.8,0.14916474]
[1731161218059,0.55,3042.4,3041.8,0.14916474]
[1731161218256,0.30726513,3042.3,3041.8,0.14916474]
[1731161218480,0.55,3042.4,3041.8,0.14916474]
[1731161218688,0.30726698,3042.3,3041.8,0.14916474]
[1731161218871,0.68087456,3042.5,3041.8,0.14916474]
[1731161219202,0.30726696,3042.4,3041.8,0.14916474]
[1731161219366,0.55,3042.2,3041.8,0.14916474]
[1731161219553,0.55,3042.4,3041.8,0.14916474]
[1731161219753,0.55,3042.2,3041.7,0.4485]
[1731161220166,0.55,3042.3,3041.7,0.4485]
[1731161221103,0.55,3042.1,3041.7,0.4485]
[1731161221301,0.55,3042.2,3041.7,0.4485]
[1731161221598,0.55,3042.0,3041.7,0.4485]
[1731161221897,0.76755997,3042.2,3041.7,0.4485]
[1731161222098,0.55,3042.0,3041.5,0.1391057]
[1731161222300,0.55,3041.8,3041.5,0.1391057]
[1731161222611,0.8572792,3041.7,3041.6,0.14928945]
[1731161222903,0.55,3041.6,3041.5,0.1391057]
[1731161223059,0.55,3041.7,3041.5,0.1391057]
[1731161223256,1.23087456,3041.8,3041.5,0.1391057]
[1731161223463,1.3694,3041.6,3041.5,0.1391057]
[1731161223661,1.93671622,3041.6,3041.5,0.1391057]
[1731161224259,2.61759078,3041.6,3041.5,0.1391057]
[1731161224789,1.93671622,3041.6,3041.5,0.1391057]
[1731161225298,2.61759078,3041.6,3041.5,0.1391057]
[1731161225464,1.93671622,3041.6,3041.5,0.1391057]
[1731161226496,2.61759078,3041.6,3041.5,0.1391057]
[1731161226692,2.31030202,3041.6,3041.5,0.1391057]
[1731161227005,2.61755195,3041.6,3041.5,0.1391057]
[1731161227301,5.61755195,3041.6,3041.5,0.1391057]
[1731161227482,4.93667739,3041.6,3041.5,0.1391057]
[1731161227661,5.95798924,3041.6,3041.5,0.1391057]
[1731161227865,6.07440309,3041.6,3041.5,0.1391057]
[1731161228257,5.96868108,3041.6,3041.5,0.1391057]
[1731161229706,4.93667739,3041.6,3041.5,0.1391057]
[1731161230089,5.66143115,3041.6,3041.5,0.1391057]
[1731161230408,6.07427456,3041.6,3041.5,0.1391057]
[1731161230705,6.07425746,3041.6,3041.5,0.1391057]
[1731161230858,5.96847761,3041.6,3041.5,0.1391057]
[1731161231057,7.43604688,3041.6,3041.5,0.1391057]
[1731161231460,6.11359775,3041.6,3041.5,0.1391057]
[1731161231655,6.13359775,3041.6,3041.5,0.1391057]
[1731161233902,6.12359775,3041.6,3041.5,0.1391057]
[1731161234088,6.13359775,3041.6,3041.5,0.1391057]
[1731161236673,6.12359775,3041.6,3041.5,0.1391057]
[1731161236976,6.13359775,3041.6,3041.5,0.1391057]
[1731161237573,6.13359775,3041.6,3039.5,3.0]
[1731161237574,0.01,3040.8,3039.9,0.4485]
[1731161237878,3.55,3040.4,3038.8,0.34008991]
[1731161238191,3.55,3040.4,3038.7,2.72689977]
[1731161238192,0.55,3040.2,3039.0,0.4485]
[1731161238372,0.9357146,3040.2,3039.0,0.51430898]
[1731161238574,0.9357146,3040.2,3039.2,0.4485]
[1731161238911,0.9357146,3040.2,3039.3,0.59964573]
[1731161239072,0.55,3040.5,3039.4,0.4485]
[1731161239678,0.55,3040.3,3039.5,0.15099122]
[1731161239920,0.55,3040.5,3039.6,0.4485]
[1731161240223,0.55,3040.3,3039.6,0.59941397]
[1731161240936,0.55,3040.5,3039.6,0.59941397]
[1731161241943,0.75360232,3040.5,3039.6,0.59941397]
[1731161243429,0.55,3040.3,3039.6,0.15091397]
[1731161244843,0.55,3040.3,3039.5,0.4485]
[1731161245328,0.55,3040.3,3039.6,0.15096147]
[1731161248236,0.06,3040.6,3039.7,0.4485]
[1731161248597,0.06,3040.6,3039.8,0.48344311]
[1731161248940,0.06,3040.6,3039.9,0.4485]
[1731161249357,0.06,3040.6,3040.1,0.4485]
[1731161249497,0.55,3040.5,3040.1,0.4485]
[1731161249698,0.55,3040.5,3040.2,0.15025679]
[1731161250847,0.55,3040.8,3040.2,0.15025679]
[1731161251350,0.55,3040.8,3040.1,0.4485]
[1731161251532,0.55,3040.6,3040.1,0.4485]
[1731161252033,0.55,3040.8,3040.1,0.4485]
[1731161252246,0.55,3040.6,3040.1,0.4485]
[1731161252902,0.55,3040.8,3039.2,0.4485]
[1731161253117,0.55,3040.6,3039.4,0.4485]
[1731161253316,0.55,3040.4,3039.5,0.15079618]
[1731161253560,0.55,3040.4,3039.6,0.4485]
[1731161253856,0.55,3040.4,3039.6,0.59921894]
[1731161254219,0.55,3040.2,3039.6,0.59921894]
[1731161254813,0.55,3040.4,3039.7,0.4485]
[1731161255055,0.55,3040.2,3039.7,0.4485]
[1731161255240,0.55,3040.2,3039.8,0.15056558]
[1731161255850,0.7629,3040.7,3039.9,0.4485]
[1731161256060,0.30675685,3040.6,3039.9,0.4485]
[1731161256244,0.7629,3041.0,3039.5,2.72689977]
[1731161256245,0.7629,3041.0,3040.1,0.4485]
[1731161256446,0.06,3041.3,3040.1,0.4485]
[1731161256447,0.30684105,3040.9,3040.1,0.4485]
[1731161256755,0.30684105,3040.8,3040.1,0.4485]
[1731161256934,0.7629,3041.2,3040.1,0.4485]
[1731161257134,0.3068325,3041.1,3040.1,0.4485]
[1731161257375,0.55,3040.9,3040.1,0.4485]
[1731161257669,0.3068325,3040.8,3040.1,0.4485]
[1731161257830,0.55,3041.1,3040.1,0.4485]
[1731161258028,0.55,3040.9,3040.1,0.4485]
[1731161258254,0.30694245,3040.8,3040.1,0.4485]
[1731161258468,0.30694245,3040.7,3040.1,0.4485]
[1731161258676,0.55,3041.1,3040.2,0.15024649]
[1731161258966,0.55,3040.9,3040.1,0.4485]
[1731161259145,0.30702807,3040.8,3040.1,0.4485]
[1731161259467,0.30702807,3040.7,3040.1,0.4485]
[1731161259665,0.55,3041.2,3040.1,0.4485]
[1731161259832,0.55,3041.0,3040.3,0.4485]
[1731161260031,0.30713257,3040.9,3040.3,0.4485]
[1731161260265,0.55,3041.0,3040.5,0.4485]
[1731161260431,0.30720924,3040.9,3040.5,0.4485]
[1731161260631,0.55,3041.0,3040.6,0.14992895]
[1731161260873,0.30720989,3040.9,3040.6,0.14992895]
[1731161261036,0.55,3041.0,3040.6,0.14992895]
[1731161261379,0.30727108,3040.9,3040.6,0.14992895]
[1731161261664,0.55,3041.0,3040.6,0.14992895]
[1731161261871,0.30726687,3040.9,3040.6,0.14992895]
[1731161262030,0.55,3041.0,3040.6,0.14992895]
[1731161262230,0.30725423,3040.9,3040.6,0.14992895]
[1731161262436,4.51022316,3041.6,3040.6,0.14992895]
[1731161262437,0.85725549,3040.8,3040.6,0.14992895]
[1731161262637,0.85725549,3040.7,3040.6,0.14992895]
[1731161262837,0.55,3040.6,3040.2,0.4485]
[1731161263074,0.55,3040.4,3040.2,0.4485]
[1731161263288,0.55,3040.6,3040.2,0.4485]
[1731161263481,0.55,3040.4,3040.2,0.4485]
[1731161264051,1.45022316,3041.1,3040.2,0.4485]
[1731161264052,0.55,3040.5,3040.2,0.4485]
[1731161264255,0.30736807,3040.4,3040.2,0.4485]
[1731161264448,0.30736807,3040.3,3040.2,0.4485]
[1731161264671,0.30736807,3040.3,3039.4,0.4485]
[1731161264873,0.55,3040.5,3039.6,0.4485]
[1731161265084,0.30736731,3040.4,3039.6,0.4485]
[1731161265397,0.85736731,3040.3,3039.7,0.15061577]
[1731161265602,0.55,3040.1,3039.7,0.15061577]
[1731161265806,0.30736731,3040.0,3039.6,0.4485]
[1731161265988,0.55,3040.4,3039.8,0.15050267]
[1731161266196,0.55,3040.2,3039.9,0.4485]
[1731161266398,0.307422,3040.1,3039.9,0.4485]
[1731161266568,0.55,3040.5,3039.9,0.4485]
[1731161266772,0.55,3040.3,3039.9,0.4485]
[1731161266994,0.30744106,3040.2,3039.9,0.4485]
[1731161267310,0.30744106,3040.1,3039.9,0.4485]
[1731161267472,0.55,3040.5,3039.9,0.4485]
[1731161267674,0.55,3040.3,3039.9,0.4485]
[1731161268002,0.30746072,3040.2,3039.9,0.4485]
[1731161268159,0.30746072,3040.1,3039.9,0.4485]
[1731161268363,0.55,3040.5,3039.9,0.4485]
[1731161268598,0.55,3040.3,3039.9,0.4485]
[1731161268801,0.30746348,3040.2,3039.9,0.4485]
[1731161269009,0.30746893,3040.1,3039.9,0.4485]
[1731161269170,0.55,3040.3,3039.9,0.4485]
[1731161269374,0.3074671,3040.2,3039.9,0.4485]
[1731161269698,0.3074671,3040.1,3039.9,0.4485]
[1731161269878,0.55,3040.3,3039.9,0.4485]
[1731161270075,0.30746594,3040.2,3039.9,0.4485]
[1731161270283,0.30746594,3040.1,3039.9,0.4485]
[1731161270481,0.55,3040.3,3039.9,0.4485]
[1731161270664,0.30746621,3040.2,3039.9,0.4485]
[1731161271009,0.30746621,3040.1,3039.3,0.4485]
[1731161271182,0.30746621,3040.0,3039.3,0.4485]
[1731161271502,0.30746621,3039.9,3039.4,0.15081161]
[1731161271663,1.23732316,3040.3,3039.4,0.15081161]
[1731161271664,0.55,3040.1,3039.4,0.15081161]
[1731161271869,0.30746991,3040.0,3039.3,0.4485]
[1731161272104,0.30746991,3039.9,3039.3,0.4485]
[1731161272270,1.3202,3040.1,3039.4,0.15081161]
[1731161272470,0.30745252,3040.0,3039.4,0.15081161]
[1731161272695,0.30745252,3039.9,3039.3,0.4485]
[1731161272893,1.86832577,3040.1,3039.3,0.4485]
[1731161273096,0.30745059,3040.0,3039.4,0.15084047]
[1731161273408,0.30745059,3039.9,3039.3,0.4485]
[1731161273707,1.09812577,3040.1,3039.4,0.15084047]
[1731161273867,0.30743047,3040.0,3039.4,0.15084047]
[1731161274183,0.54812577,3040.1,3039.4,0.15084047]
[1731161274379,0.30741136,3040.0,3039.5,0.4485]
[1731161274587,0.47373455,3040.2,3039.5,0.4485]
[1731161274895,0.30741402,3040.1,3039.6,0.15068599]
[1731161275084,0.30741402,3040.0,3039.6,0.15068599]
[1731161275284,0.44684717,3040.1,3039.6,0.15068599]
[1731161275595,0.30741652,3040.0,3039.6,0.15068599]
[1731161275790,0.44684717,3040.1,3039.6,0.15068599]
[1731161275970,0.30741563,3040.0,3039.6,0.15068599]
[1731161276170,0.30741563,3039.9,3039.6,0.15068599]
[1731161276418,1.13417033,3040.1,3039.5,0.4485]
[1731161276910,0.30741257,3040.0,3039.5,0.4485]
[1731161277096,0.30741257,3039.9,3039.5,0.4485]
[1731161277296,1.13417033,3040.1,3039.5,0.4485]
[1731161277472,0.30740946,3040.0,3039.6,0.15070026]
[1731161277673,0.30740946,3039.9,3039.6,0.15070026]
[1731161277913,0.68732316,3040.0,3039.6,0.15070026]
[1731161278113,0.30741506,3039.9,3039.6,0.15070026]
[1731161278352,0.95121212,3040.0,3039.6,0.15070026]
[1731161278507,0.30739923,3039.9,3039.6,0.15070026]
[1731161278913,0.7702,3039.9,3039.6,0.15070026]
[1731161279109,0.7702,3039.9,3039.5,0.4485]
[1731161279326,0.30739201,3039.8,3039.5,0.4485]
[1731161279516,0.95121212,3040.0,3039.5,0.4485]
[1731161279714,0.30739183,3039.9,3039.5,0.4485]
[1731161280044,0.95121212,3040.0,3039.5,0.4485]
[1731161280196,0.30737769,3039.9,3039.5,0.4485]
[1731161280406,0.27364217,3039.9,3039.5,0.4485]
[1731161281832,0.27364217,3039.9,3039.6,0.15080083]
[1731161283236,0.27364217,3039.9,3038.6,3.37325959]
[1731161283237,0.7702,3039.7,3038.7,0.4485]
[1731161283445,0.53882354,3039.6,3038.7,0.4485]
[1731161283602,0.23148606,3039.6,3038.8,0.1514156]
[1731161283806,0.91880922,3039.6,3038.9,0.4485]
[1731161284027,0.30736919,3039.5,3038.9,0.4485]
[1731161284207,0.68732316,3039.7,3038.9,0.4485]
[1731161284408,0.68732316,3039.8,3039.0,0.15126106]
[1731161284631,0.30728373,3039.7,3039.1,0.4485]
[1731161284949,0.68732316,3039.8,3039.1,0.4485]
[1731161285128,0.30728444,3039.7,3039.1,0.4485]
[1731161285312,0.68732316,3039.8,3039.1,1.71038102]
[1731161285641,0.30724237,3039.7,3039.1,1.71038102]
[1731161285804,0.68732316,3039.8,3039.2,0.15110653]
[1731161286001,0.30724884,3039.7,3039.2,0.15110653]
[1731161286201,1.15915395,3039.8,3039.2,0.15110653]
[1731161286431,1.76474917,3039.7,3039.2,0.15110653]
[1731161286614,0.30722601,3039.6,3039.2,0.15110653]
[1731161286814,1.45752316,3039.7,3039.1,0.4485]
[1731161287037,0.30722686,3039.6,3039.3,0.15103841]
[1731161287336,1.75355703,3039.7,3039.1,0.4485]
[1731161287541,0.3072197,3039.6,3039.2,0.15111567]
[1731161287725,1.75355703,3039.7,3039.2,0.15111567]
[1731161287926,1.75355703,3039.7,3038.9,1.71038102]
[1731161287927,0.63285741,3039.6,3038.9,0.4485]
[1731161288128,0.32563726,3039.6,3038.9,0.4485]
[1731161288330,0.32563726,3039.6,3039.0,0.15127019]
[1731161289647,0.7562,3039.3,3039.0,0.15127019]
[1731161289848,0.30722891,3039.2,3039.0,0.15127019]
[1731161290019,0.17507521,3039.1,3038.7,0.4485]
[1731161290222,1.03098474,3039.5,3038.7,0.4485]
[1731161290223,3.68732316,3039.5,3038.7,1.71038102]
[1731161290401,0.30725438,3039.4,3039.0,0.4485]
[1731161290607,0.68732316,3039.6,3039.0,0.4485]
[1731161290816,0.30724034,3039.5,3039.1,0.15120974]
[1731161291117,0.68732316,3039.7,3039.0,0.4485]
[1731161291328,0.85478176,3039.6,3039.0,0.4485]
[1731161291527,0.30733097,3039.5,3039.0,0.4485]
[1731161291741,0.30733818,3039.4,3039.0,0.4485]
[1731161291941,1.23477395,3039.6,3039.0,0.4485]
[1731161292164,0.30734162,3039.5,3039.1,0.15120974]
[1731161292363,0.30734162,3039.4,3039.1,0.15120974]
[1731161292546,1.23477395,3039.6,3039.0,0.4485]
[1731161292857,0.30746173,3039.5,3039.0,0.4485]
[1731161293024,0.30746173,3039.4,3039.0,0.4485]
[1731161293234,0.30746173,3039.3,3039.0,0.4485]
[1731161293433,0.55,3039.5,3039.0,0.4485]
[1731161293647,0.55,3039.3,3039.1,0.15120974]
[1731161293838,0.30747968,3039.2,3038.6,0.4485]
[1731161294163,0.93467739,3039.4,3038.7,0.15151883]
[1731161294317,0.30747591,3039.3,3038.6,0.4485]
[1731161294665,0.30747591,3039.2,3038.7,0.15151883]
[1731161294964,0.93467739,3039.4,3038.6,0.4485]
[1731161295128,0.30748765,3039.3,3038.7,0.15151883]
[1731161295455,0.30748765,3039.2,3038.6,0.4485]
[1731161295666,0.30748765,3039.1,3038.6,0.4485]
[1731161295824,0.55,3039.3,3038.7,0.15152724]
[1731161296017,0.30748159,3039.2,3038.7,0.15152724]
[1731161296220,0.1792159,3039.2,3038.6,0.4485]
[1731161296764,0.30744853,3039.1,3038.6,0.4485]
[1731161297068,0.1792159,3039.2,3038.7,0.15153089]
[1731161297568,0.1792159,3039.2,3038.6,0.4485]
[1731161298464,0.1792159,3039.2,3038.7,0.15175151]
[1731161298680,0.1792159,3039.2,3038.7,1.41363253]
[1731161298880,0.93467739,3039.4,3038.7,1.41363253]
[1731161299160,0.30739516,3039.3,3038.7,1.26188102]
[1731161299483,0.30741362,3039.2,3038.7,1.26188102]
[1731161299662,0.93467739,3039.4,3038.7,1.26188102]
[1731161299865,0.93467739,3039.4,3038.6,0.4485]
[1731161299866,0.30742242,3039.3,3038.6,0.4485]
[1731161300073,0.30742242,3039.2,3038.6,0.4485]
[1731161300243,0.93467739,3039.4,3038.7,0.15154062]
[1731161300445,0.30742768,3039.3,3038.8,0.4485]
[1731161300766,0.17847739,3039.4,3038.9,0.15143336]
[1731161300966,0.30742065,3039.3,3038.8,0.4485]
[1731161301166,0.55,3039.5,3038.8,0.4485]
[1731161301338,0.30743221,3039.4,3038.8,0.4485]
[1731161301542,0.30743221,3039.3,3038.8,0.4485]
[1731161301739,0.30744615,3039.2,3038.8,0.4485]
[1731161301970,0.4404883,3039.4,3038.8,0.4485]
[1731161302189,0.3074424,3039.3,3038.8,0.4485]
[1731161302348,0.3074424,3039.2,3038.8,0.4485]
[1731161302544,0.4404883,3039.4,3038.8,0.4485]
[1731161302868,0.3074488,3039.3,3038.8,0.4485]
[1731161303043,0.55,3039.6,3038.8,0.4485]
[1731161303245,0.30745876,3039.5,3038.8,0.4485]
[1731161303445,0.30745876,3039.4,3038.8,0.4485]
[1731161303653,0.30745876,3039.3,3038.8,0.4485]
[1731161303878,0.30746427,3039.2,3038.8,0.4485]
[1731161304095,1.23732316,3039.6,3038.9,0.15143336]
[1731161304393,1.23732316,3039.6,3038.8,0.4485]
[1731161304394,0.51093786,3039.5,3038.8,0.4485]
[1731161304685,0.30748554,3039.4,3038.8,0.4485]
[1731161304990,0.20345232,3039.5,3038.8,0.4485]
[1731161304991,0.30748554,3039.3,3038.8,0.4485]
[1731161305189,0.30748554,3039.2,3038.8,0.4485]
[1731161305350,0.30748554,3039.1,3038.9,0.15138607]
[1731161305669,1.3472,3039.3,3038.9,0.15138607]
[1731161305872,0.55,3039.1,3038.9,0.15138607]
[1731161306073,0.30751983,3039.0,3038.6,0.4485]
[1731161306385,1.3472,3039.3,3038.5,0.1391057]
[1731161306585,0.7972,3039.0,3038.5,0.1391057]
[1731161309448,0.30766718,3038.9,3038.5,0.1391057]
[1731161310174,0.7972,3039.0,3038.5,0.1391057]
[1731161311194,0.30764382,3038.9,3038.5,0.1391057]
[1731161311481,0.7972,3039.0,3038.5,0.1391057]
[1731161311697,0.30769399,3038.9,3038.5,0.1391057]
[1731161312009,1.05543832,3039.0,3038.5,0.1391057]
[1731161312191,0.30774083,3038.9,3038.5,0.1391057]
[1731161312376,1.05543832,3039.0,3038.5,0.1391057]
[1731161312690,0.30774109,3038.9,3038.5,0.1391057]
[1731161312892,1.05543832,3039.0,3038.5,0.1391057]
[1731161313053,0.30776045,3038.9,3038.5,0.1391057]
[1731161313258,0.30776045,3038.8,3038.5,0.1391057]
[1731161313483,0.26005219,3038.9,3038.5,0.1391057]
[1731161313789,0.30778822,3038.8,3038.5,0.1391057]
[1731161313950,0.30778822,3038.7,3038.5,0.1391057]
[1731161314150,0.26005219,3038.9,3038.6,0.1516633]
[1731161314350,0.30774294,3038.8,3038.5,0.1391057]
[1731161314599,0.26005219,3038.9,3038.5,0.1391057]
[1731161314749,0.30773877,3038.8,3038.5,0.1391057]
[1731161314953,0.26005219,3038.9,3038.5,0.1391057]
[1731161315497,0.3077592,3038.8,3038.5,0.1391057]
[1731161315663,0.26005219,3038.9,3038.5,0.1391057]
[1731161315898,0.30775902,3038.8,3038.5,0.1391057]
[1731161316096,0.26005219,3038.9,3038.5,0.1391057]
[1731161316430,0.30778598,3038.8,3038.5,0.1391057]
[1731161316718,0.26005219,3038.9,3038.5,0.1391057]
[1731161317128,0.30778604,3038.8,3038.5,0.1391057]
[1731161317429,0.26005219,3038.9,3038.5,0.1391057]
[1731161317581,0.30780447,3038.8,3038.5,0.1391057]
[1731161317780,0.26005219,3038.9,3038.5,0.1391057]
[1731161318019,0.30780452,3038.8,3038.5,0.1391057]
[1731161318193,0.26005219,3038.9,3038.5,0.1391057]
[1731161318393,0.71354966,3038.8,3038.5,0.1391057]
[1731161318618,0.30782571,3038.7,3038.5,0.1391057]
[1731161318821,0.40572522,3038.8,3038.5,0.1391057]
[1731161319029,0.307826,3038.7,3038.5,0.1391057]
[1731161319185,0.40572522,3038.8,3038.5,0.1391057]
[1731161319386,0.30783958,3038.7,3038.5,0.1391057]
[1731161319582,0.40572522,3038.8,3038.5,0.1391057]
[1731161319798,0.30783961,3038.7,3038.5,0.1391057]
[1731161319979,0.40572522,3038.8,3038.5,0.1391057]
[1731161320185,0.30781637,3038.7,3038.5,0.1391057]
[1731161320524,0.40572522,3038.8,3038.5,0.1391057]
[1731161320724,0.30781636,3038.7,3038.5,0.1391057]
[1731161320884,0.40572522,3038.8,3038.5,0.1391057]
[1731161321086,0.3078164,3038.7,3038.5,0.1391057]
[1731161321319,0.40572522,3038.8,3038.5,0.1391057]
[1731161321620,0.3078333,3038.7,3038.5,0.1391057]
[1731161321826,0.40572522,3038.8,3038.5,0.1391057]
[1731161322145,0.30783328,3038.7,3038.5,0.1391057]
[1731161322288,0.40572522,3038.8,3038.5,0.1391057]
[1731161322486,0.30784459,3038.7,3038.5,0.1391057]
[1731161322689,0.40572522,3038.8,3038.5,0.1391057]
[1731161322916,0.30784456,3038.7,3038.5,0.1391057]
[1731161323084,0.40572522,3038.8,3038.5,0.1391057]
[1731161323294,0.30785611,3038.7,3038.5,0.1391057]
[1731161323641,0.40572522,3038.8,3038.5,0.1391057]
[1731161323840,0.30785629,3038.7,3038.5,0.1391057]
[1731161324146,0.40572522,3038.8,3038.5,0.1391057]
[1731161324313,0.30785858,3038.7,3038.5,0.1391057]
[1731161324642,0.40572522,3038.8,3038.5,0.1391057]
[1731161324848,0.30785839,3038.7,3038.5,0.1391057]
[1731161325145,0.40572522,3038.8,3038.5,0.1391057]
[1731161325441,0.30785525,3038.7,3038.5,0.1391057]
[1731161325646,0.40572522,3038.8,3038.5,0.1391057]
[1731161325803,0.3078553,3038.7,3038.5,0.1391057]
[1731161326151,0.40572522,3038.8,3038.5,0.1391057]
[1731161326441,0.30785268,3038.7,3038.5,0.1391057]
[1731161326610,0.40572522,3038.8,3038.5,0.1391057]
[1731161326803,0.30785332,3038.7,3038.5,0.1391057]
[1731161327004,0.40572522,3038.8,3038.5,0.1391057]
[1731161327316,0.3078534,3038.7,3038.5,0.1391057]
[1731161327509,0.40572522,3038.8,3038.5,0.1391057]